Cogmind - Beta 16 @@@ ROGUE MODE // 2025.10.23 @ 02:02:18 Player: H3-MLN Result: Destroyed by OV-J40(E) with Overtuned Barrage Gun Performance ------------- Evolutions (0) 0 Regions Visited (4) 800 Robots Destroyed (19) 95 Value Destroyed (541) 541 Prototype IDs (25) 500 Alien Tech Used (0) 0 Bonus (300) 300 TOTAL SCORE: 2236 Bonus ------- Registered with UFD 300 Cogmind --------- Core Integrity 0/250 Matter 300/300 Energy 100/100 System Corruption 6% Temperature Cool (0) Movement Flying (40) Location -8/Scraptown Parts ------- > --- POWER (1) -------- (None) > --- PROPULSION (2) --- Xenon Bombardment Thruster > --- UTILITY (2) ------ (None) > --- WEAPON (2) ------- Power Maul > --- INVENTORY (5) ---- Experimental Sensor Array Hardened Light Armor Plating Mini Grenade Launcher CPS Tube (2) Multitool Peak State ------------ > --- POWER ------------ Subdweller Power Source Subdweller Power Source Subdweller Power Source Subdweller Power Source > --- PROPULSION ------- Subdweller Monowheel Subdweller Monowheel > --- UTILITY ---------- Large Storage Unit Power Bank > --- WEAPON ----------- Subdweller Beam Cannon Subdweller Machine Gun > --- INVENTORY -------- Wheel Subdweller Monowheel Subdweller Monowheel Humpback Scrap Shield Cobbler Unit Subdweller Beam Cannon Subdweller Machine Gun Barrage Gun Subdweller Shrapnel Launcher [Rating: 28] Favorites ----------- Power Subdweller Power Source Engine Subdweller Power Source Propulsion Subdweller Monowheel Treads Light Treads Wheel Subdweller Monowheel Flight Unit Xenon Bombardment Thruster Utility Large Storage Unit Device Shield Generator Storage Large Storage Unit Protection Hardened Light Armor Plating Weapon Subdweller Beam Cannon Energy Gun Subdweller Laser Energy Cannon Subdweller Beam Cannon Ballistic Gun Subdweller Machine Gun Ballistic Cannon Battle Cannon Launcher Subdweller Shrapnel Launcher Impact Weapon Power Maul Build | -11 -10 -10 -8 -8 ------- Run | Yrd Mat Sub Rec Scr Slots Evolved . | . . . . . Power . | . . . . . Propulsion . | . . . . . Utility . | . . . . . Weapon . | . . . . . Parts Attached 47 | 7 1 28 1 10 Power 10 | 1 . 7 1 1 Engine 10 | 1 . 7 1 1 Core . | . . . . . Reactor . | . . . . . Propulsion 13 | 2 . 8 . 3 Treads 2 | . . 2 . . Leg . | . . . . . Wheel 9 | 2 . 6 . 1 Hover . | . . . . . Flight 2 | . . . . 2 Utility 12 | 2 1 4 . 5 Device 6 | . . 2 . 4 Storage 4 | 2 1 1 . . Processor . | . . . . . Hackware . | . . . . . Protection 2 | . . 1 . 1 Artifact . | . . . . . Weapon 12 | 2 . 9 . 1 Energy Gun 1 | . . 1 . . Energy Cannon 3 | . . 3 . . Ballistic Gun 5 | 2 . 3 . . Ballistic Cannon 1 | . . 1 . . Launcher 1 | . . 1 . . Special Weapon . | . . . . . Impact Weapon 1 | . . . . 1 Slashing Weapon . | . . . . . Piercing Weapon . | . . . . . Special Melee Weapon . | . . . . . Unidentified Prototypes . | . . . . . Parts Lost 10 | . . 8 . 2 Power 3 | . . 2 . 1 Propulsion 2 | . . 2 . . Utility 3 | . . 2 . 1 Weapon 2 | . . 2 . . Highest Loss Streak 4 | . . 4 . 2 To Critical Strikes . | . . . . . Average Backups 6 | 2 5 12 12 5 Power . | . 1 1 . . Propulsion 1 | . 2 3 4 . Utility 2 | . . 2 3 2 Weapon 2 | . 1 4 3 1 Tool/Special . | . . . . . Unused Backups 21 | . . 8 . 13 Power 1 | . . 1 . . Propulsion 3 | . . 1 . 2 Utility 5 | . . . . 5 Weapon 10 | . . 6 . 4 Tool/Special 2 | . . . . 2 Average Slot Usage (%) 85 | . 97 94 99 82 Engine 19 | . 14 16 39 20 Treads 2 | . . 8 . . Wheel 13 | . 28 17 20 11 Flight 7 | . . . . 9 Device 11 | . . 6 10 12 Storage 5 | . 14 13 10 2 Protection 4 | . 11 3 . 4 Energy Gun 1 | . 20 5 . . Energy Cannon 8 | . . 10 10 8 Ballistic Gun 8 | . 7 10 10 8 Impact Weapon 3 | . . . . 4 Peak Build Rating 28 | 7 7 28 28 28 Average Rating 18 | 5 6 15 27 19 On Entrance 14 | . 7 7 28 28 Avg Prop Armor Cover (%) 10 | . . 11 . 4 Naked Turns 18 | . . . . 18 Heaviest Build 217 | 18 28 217 57 57 Greatest Support 40 | 26 26 40 40 40 Greatest Overweight (x) 10 | . 1 10 1 3 Average Overweight (x) 1 | . . 2 1 1 Largest Inventory Capacity 35 | 8 15 35 15 15 Average Capacity 10 | 7 12 19 15 7 Most Carried 28 | 4 6 28 15 15 Average Carried 7 | 2 5 13 14 6 Final Capacity 15 | 8 15 15 15 5 Final Carried 15 | 4 6 15 15 5 Class Distribution -------------------- 63% | Mutant 31% | Scavenger-Mutant 5% | Hauler-Mutant Dominant Class ---------------- Mutant | -10/Materials Scavenger-Mutant | -10/Subcaves Scavenger-Mutant | -8/Recycling Mutant | -8/Scraptown Resources | -11 -10 -10 -8 -8 ----------- Run | Yrd Mat Sub Rec Scr Matter Collected 1637 | 259 49 420 31 878 Remotely . | . . . . . Salvage Created 782 | 51 122 561 48 . Parts 52 | 2 9 36 5 . Haulers Intercepted 1 | . 1 . . . Recyclers Shooed . | . . . . . Parts Field Recycled 36 | . . . . 36 Retrieved Matter 937 | . . . . 937 Parts Self-Destructed 2 | . . 2 . . Prevented . | . . . . . Parts Restored . | . . . . . Kills | -11 -10 -10 -8 -8 ------- Run | Yrd Mat Sub Rec Scr Combat Hostiles Destroyed 15 | . 2 12 1 . Guns 5 | . 2 3 . . Cannons 6 | . . 5 1 . AOE 4 | . . 4 . . Classes Destroyed 8 | 1 2 4 1 . Hauler 1 | . 1 . . . Recycler 1 | 1 . . . . Turret 2 | . . 2 . . Swarmer 4 | . . 4 . . Grunt 2 | . 2 . . . Sentry 1 | . . . 1 . Cobbler 1 | . . 1 . . Subdweller 8 | . . 8 . . Best Kill Streak 5 | 1 3 5 1 . Combat Bots Only 4 | . 2 4 1 . Max Kills in Single Turn 4 | 1 1 4 1 . Gunslinging . | . . . . . Exploded 4 | . . 4 . . Melee . | . . . . . Uniques/NPCs Destroyed . | . . . . . Combat | -11 -10 -10 -8 -8 -------- Run | Yrd Mat Sub Rec Scr Hostile Shots Fired 119 | . 3 96 2 18 Missed 42 | . 1 33 2 6 Hits 77 | . 2 63 . 12 Melee 7 | . . . . 7 Projectile 70 | . 2 63 . 5 AOE 5 | . . 5 . . Damage Taken 1462 | . 22 1274 . 166 Core 255 | . . 209 . 46 Absorbed by Shields 13 | . . . . 13 Core Remaining (%) 100 | 100 . . . . Volleys Fired 80 | 7 6 65 2 . Largest 2 | 2 2 2 2 . Hottest 160 | 40 60 160 110 . Shots Fired 134 | 14 12 104 4 . Gun 94 | 14 12 66 2 . Cannon 39 | . . 37 2 . Launcher 1 | . . 1 . . Special . | . . . . . Kinetic 54 | 14 . 38 2 . Thermal 80 | . 12 66 2 . Explosive . | . . . . . Electromagnetic . | . . . . . Robot Hit Streak 21 | 5 6 21 4 . Robot Miss Streak 3 | 3 1 3 . . Penetration Max . | . . . . . Secondary Targets 1 | . . 1 . . Max Gunslinging Chain 1 | . . 1 . . Shots Hit Robots 98 | 9 9 77 3 . Core Hits 35 | 3 6 24 2 . Critical Kills 2 | . . 2 . . Critical Parts Destroyed . | . . . . . Critical Strikes 2 | . . 2 . . Meltdown 1 | . . 1 . . Destroy 1 | . . 1 . . Melee Attacks 6 | . . . . 6 Impact 6 | . . . . 6 Slashing . | . . . . . Piercing . | . . . . . Sneak Attacks . | . . . . . Combat Hostiles . | . . . . . Follow-up Attacks . | . . . . . Damage Inflicted 1998 | 84 83 1758 73 . Guns 964 | 84 83 780 17 . Cannons 800 | . . 744 56 . Explosions 234 | . . 234 . . Melee . | . . . . . Ramming . | . . . . . Kinetic 732 | 84 . 631 17 . Thermal 1266 | . 83 1127 56 . Explosive . | . . . . . Electromagnetic . | . . . . . Impact . | . . . . . Slashing . | . . . . . Piercing . | . . . . . Highest Corruption 6 | . 1 1 1 6 Average Corruption 1 | . 1 1 1 4 Corruption Purged . | . . . . . Corruption Blocked . | . . . . . Effects 17 | . . 17 . . Message Errors 9 | . . 9 . . Matter Fused 1 | . . 1 . . Heat Flow Errors 1 | . . 1 . . Energy Discharges 1 | . . 1 . . Data Loss (minor) 3 | . . 3 . . Data Loss (major) 2 | . . 2 . . Overload Shots . | . . . . . Overflow Damage 27 | . . 27 . . Projectiles 12 | . . 12 . . Explosions 15 | . . 15 . . Melee . | . . . . . Knockbacks . | . . . . . Impact . | . . . . . Kinetic . | . . . . . Secondary . | . . . . . Self-Inflicted Damage 15 | . . 15 . . Shots 1 | . . 1 . . Rammed . | . . . . . Targets Rammed . | . . . . . Kicked . | . . . . . Crushed . | . . . . . Highest Temperature 228 | . 18 228 96 . Average Temperature 59 | . 6 80 52 . Received Heat Transfer 330 | . 12 318 . . Siege Activations . | . . . . . Martial Activations . | . . . . . Shielding Activations . | . . . . . Robots Disrupted . | . . . . . Combat Hostiles . | . . . . . Robots Corrupted . | . . . . . Combat Hostiles . | . . . . . Parts Fried . | . . . . . Impact Corruptions . | . . . . . Robots Melted 1 | . . 1 . . Combat Hostiles . | . . . . . Parts Melted 2 | . . 2 . . Heat Transferred 2310 | . 333 1903 74 . Parts Sabotaged . | . . . . . Parts Stolen 1 | . . . . 1 Parts Stripped . | . . . . . Power Chain Reactions . | . . . . . Alert | -11 -10 -10 -8 -8 ------- Run | Yrd Mat Sub Rec Scr Maximum Alert Level . | . . . . . Low Security (%) 100 | 100 100 . 100 . Level 1 . | . . . . . Level 2 . | . . . . . Level 3 . | . . . . . Level 4 . | . . . . . Level 5 . | . . . . . High Security . | . . . . . Max Security . | . . . . . Peak Influence 91 | 5 50 . 91 . Initial 80 | . . . 80 . Average 33 | 1 17 . 71 . Influence Increases 282 | 5 76 180 21 . Destroy 0b10 Robot/C 180 | . 40 120 20 . Destroy 0b10 Robot/NC 10 | 5 5 . . . Destroy Leader 12 | . 12 . . . Successful Hack 19 | . 19 . . . Destroy Structure 1 | . . . 1 . Lose Combat Pursuer 60 | . . 60 . . Influence Decreases 282 | 5 46 42 138 51 Entered New Map 154 | . . 15 88 51 Time Decay 123 | 5 46 22 50 . Lost Part 5 | . . 5 . . Squads Dispatched 1 | . 1 . . . Investigation 1 | . 1 . . . Extermination . | . . . . . Reinforcement . | . . . . . Assault . | . . . . . Garrison . | . . . . . Intercept . | . . . . . Searches Triggered . | . . . . . Construction Impeded . | . . . . . Haulers Reinforced . | . . . . . Active Scanning Responses . | . . . . . Cargo Convoy Interrupts . | . . . . . Stealth | -11 -10 -10 -8 -8 --------- Run | Yrd Mat Sub Rec Scr Distress Signals . | . . . . . Communications Jammed . | . . . . . Distress Signals . | . . . . . Times Spotted 33 | . 2 14 1 16 Peak Tracking Total 15 | . 2 6 . 15 Tactical Retreats 2 | . . 2 . . Traps | -11 -10 -10 -8 -8 ------- Run | Yrd Mat Sub Rec Scr Traps Triggered 2 | . . 2 . . Indirectly . | . . . . . Trap Hack Attempts . | . . . . . Triggered . | . . . . . Disarmed . | . . . . . Reprogrammed . | . . . . . Reused . | . . . . . Traps Extracted . | . . . . . Installed . | . . . . . Triggered . | . . . . . Machines | -11 -10 -10 -8 -8 ---------- Run | Yrd Mat Sub Rec Scr Machines Disabled 5 | . . 2 . 3 Max in Single Turn 1 | . . 1 . 1 Machines Repaired . | . . . . . Machines Dismantled . | . . . . . Machines Sabotaged . | . . . . . Overloaded Fab Kills . | . . . . . Hacking | -11 -10 -10 -8 -8 --------- Run | Yrd Mat Sub Rec Scr Machines Accessed 9 | . 3 2 1 3 Terminals 2 | . 2 . . . Fabricators . | . . . . . Repair Stations 1 | . 1 . . . Recycling Units 1 | . . . 1 . Scanalyzers . | . . . . . Garrison Access . | . . . . . Total Hacks 31 | . 10 5 3 13 Successful 24 | . 4 5 2 13 Failed 6 | . 5 . 1 . Catastrophic . | . . . . . Database Lockouts 1 | . 1 . . . Manual 6 | . 5 . 1 . Terminals 6 | . 6 . . . Fabricators . | . . . . . Repair Stations 4 | . 4 . . . Recycling Units 3 | . . . 3 . Scanalyzers . | . . . . . Garrison Access . | . . . . . Terminal Hacks 21 | . 3 5 . 13 Record 8 | . . 4 . 4 Part Schematic 1 | . 1 . . . Robot Analysis 9 | . 1 . . 8 Hauler Manifests 1 | . 1 . . . Proto ID Catalog 2 | . . 1 . 1 Fabricator Hacks . | . . . . . Repair Station Hacks 1 | . 1 . . . Refit 1 | . 1 . . . Recycling Unit Hacks 2 | . . . 2 . Report Inventory 1 | . . . 1 . Retrieve Components 1 | . . . 1 . Scanalyzer . | . . . . . Garrison Access Hacks . | . . . . . Unauthorized Hacks . | . . . . . Terminals . | . . . . . Fabricators . | . . . . . Repair Stations . | . . . . . Recycling Units . | . . . . . Scanalyzers . | . . . . . Garrison Access . | . . . . . Data Cores Recovered . | . . . . . Used . | . . . . . Hacking Detections 3 | . 2 . 1 . Full Trace Events 2 | . 1 . 1 . Feedback Events 1 | . 1 . . . Corruption 1 | . 1 . . . Feedback Blocked . | . . . . . Robot Schematics Acquired . | . . . . . Robots Built . | . . . . . Authchips . | . . . . . Time . | . . . . . Total Robot Build Rating . | . . . . . Part Schematics Acquired 2 | . 1 . . 1 Parts Built . | . . . . . Authchips . | . . . . . Time . | . . . . . Total Part Build Rating . | . . . . . Part Studies Acquired . | . . . . . Parts Repaired . | . . . . . Time . | . . . . . Parts Recycled . | . . . . . Recycled Matter . | . . . . . Retrieved Matter . | . . . . . Retrieved Components 3 | . . . 3 . Parts Scanalyzed . | . . . . . Part Schematics Acquired . | . . . . . Parts Damaged . | . . . . . Bothacking | -11 -10 -10 -8 -8 ------------ Run | Yrd Mat Sub Rec Scr Used RIF Installer . | . . . . . Robots Hacked . | . . . . . Non-combat . | . . . . . Combat . | . . . . . Robot Hacks Applied . | . . . . . Relay Couplers Released . | . . . . . Fabnet Peak Effective % . | . . . . . Robots Rewired . | . . . . . Allies Hacked . | . . . . . Hacks Repelled . | . . . . . Allies | -11 -10 -10 -8 -8 -------- Run | Yrd Mat Sub Rec Scr Total Allies . | . . . . . Largest Group . | . . . . . Highest-Rated Group . | . . . . . Highest-Rated Ally . | . . . . . Total Orders . | . . . . . Ally Attacks . | . . . . . Total Damage . | . . . . . Kills . | . . . . . Allies Corrupted . | . . . . . Allies Melted . | . . . . . Intel | -11 -10 -10 -8 -8 ------- Run | Yrd Mat Sub Rec Scr Active Infowar (turns) 685 | . . 685 . . Optics 685 | . . 685 . . Robot Analysis Total 9 | . 1 . . 8 Derelict Logs Recovered 7 | . . 2 . 5 Drone Launches . | . . . . . Drone Recoveries . | . . . . . Exploration | -11 -10 -10 -8 -8 ------------- Run | Yrd Mat Sub Rec Scr Turns Passed 8460 | 81 107 1940 118 6214 Spaces Moved 4897 | 50 73 1158 90 3526 Core 36 | 1 . . . 35 Treads 71 | . . 71 . . Legs . | . . . . . Wheels 4100 | 49 73 1087 90 2801 Hover . | . . . . . Flight 690 | . . . . 690 Fastest Speed 34 | 50 90 105 120 34 Average Speed 113 | 89 98 139 120 104 Slowest Speed 240 | 100 105 240 120 130 Overloaded Moves . | . . . . . Propulsion Burnouts . | . . . . . Robots Hopped 1 | . . . . 1 Potential Cave-ins . | . . . . . Cave-ins Triggered 1 | . . . . 1 Exploration Rate (%) 37 | 4 17 63 14 87 Regions Visited 4 Branch Regions 3 Pre-discovered Areas 5 | . . 2 . 3 Known Exits Taken . | . . . . . Unknown Exits Taken 4 | 1 1 1 1 . Scrap Searched 16 | . . 10 . 6 Spaces Dug 17 | . . 14 . 3 Terrain Destroyed 18 | . . 14 1 3 Melee 3 | . . . . 3 Projectile 1 | . . . 1 . AOE 14 | . . 14 . . Terrain Rammed . | . . . . . Walls Destroyed . | . . . . . Machines Disabled . | . . . . . Actions | -11 -10 -10 -8 -8 --------- Run | Yrd Mat Sub Rec Scr Total 7677 | 69 98 1372 96 6042 Wait 2506 | 2 13 37 1 2453 Move 4891 | 49 72 1157 89 3524 Hop 1 | . . . . 1 Pick Up 73 | 4 1 55 1 12 Fast Attach 26 | 7 1 7 1 10 Attach 15 | . . 10 . 5 Detach 3 | . 1 1 . 1 Swap 19 | . . 18 . 1 Drop 57 | . 4 22 2 29 Fire 80 | 7 6 65 2 . Melee 6 | . . . . 6 Ram . | . . . . . Kick . | . . . . . Crush . | . . . . . Escape Stasis . | . . . . . Rewire . | . . . . . Trap . | . . . . . Miscellaneous . | . . . . . Route ------- -11/Scrapyard -10/Materials -10/Subcaves (discovered 3 exits: [*Mat x2] / *Rec) -8/Recycling -8/Scraptown (discovered 1 exit: [*Fac]) History --------- Turn | Location | Event 11 | -11/Scrapyard | Discovered new exit (range 16) 82 | -11/Scrapyard | Entered Materials 93 | -10/Materials | Central database locked down 181 | -10/Materials | Discovered new exit (range 9) 189 | -10/Materials | Entered Subcaves 189 | -10/Subcaves | Discovered new exit (range 11) 190 | -10/Subcaves | Approached by a straggling Scientist 251 | -10/Subcaves | Lost 4 parts (1p1n1u1w) 286 | -10/Subcaves | Shifting Twisted Machinery released Sub. Beam Cannon 301 | -10/Subcaves | Shifting Twisted Machinery released Battle Cannon 337 | -10/Subcaves | Build established: Mutant 592 | -10/Subcaves | Core integrity fell below 50% 679 | -10/Subcaves | Lost 4 parts (1p1n1u1w) 712 | -10/Subcaves | Discovered new exit (range 18) 733 | -10/Subcaves | Learned location of Zion (-6) 733 | -10/Subcaves | Met a Zionite searching for "candidates" 848 | -10/Subcaves | Visited Clippyterm 852 | -10/Subcaves | Learned Factory trap positions 852 | -10/Subcaves | Learned Research security intel 859 | -10/Subcaves | Shifting Twisted Machinery released Barrage Gun 866 | -10/Subcaves | Shifting Twisted Machinery released Scrap Shield 967 | -10/Subcaves | Build established: Scavenger-Mutant 1149 | -10/Subcaves | Learned Materials non-interactive machine intel 1254 | -10/Subcaves | Shifting Twisted Machinery released Sub. Laser 1307 | -10/Subcaves | Disturbed a concealed Subdweller 1517 | -10/Subcaves | A swath of the cavern ceiling suddenly collapsed 1654 | -10/Subcaves | Build established: Hauler-Mutant 1698 | -10/Subcaves | Visited 4L-MR0's lab 1723 | -10/Subcaves | Found Power Bank 1806 | -10/Subcaves | Attached Power Bank, gained temporary slots: Power x3 1989 | -10/Subcaves | Shifting Twisted Machinery released Sub. Optics 2098 | -10/Subcaves | Discovered new exit (range 8) 2109 | -10/Subcaves | Core integrity fell below 20% 2129 | -10/Subcaves | Entered Recycling 2135 | -8/Recycling | Build established: Scavenger-Mutant 2218 | -8/Recycling | Scanned before Scraplab entrance 2236 | -8/Recycling | Entered Scraplab 2246 | -8/Recycling | Discovered new exit (range 2) 2247 | -8/Recycling | Entered Scraptown 2250 | -8/Scraptown | System corruption cleaned by C-Scrubber 2427 | -8/Scraptown | Visited Fellowship of the Rings 2439 | -8/Scraptown | Visited IN-MT5's Study 2469 | -8/Scraptown | Visited SPCMW 2565 | -8/Scraptown | Scanned Subdweller tech in exchange for log data 2567 | -8/Scraptown | Learned location of Warlord (-4) 2569 | -8/Scraptown | Learned Research garrison access intel 2570 | -8/Scraptown | Learned location of Armory (-4) 2571 | -8/Scraptown | Learned location of Testing (-2) 2573 | -8/Scraptown | Learned Factory stockpile data 2632 | -8/Scraptown | Visited UFD Registry 2632 | -8/Scraptown | Registered with UFD as "Bladespawn" 2657 | -8/Scraptown | Visited Scrap Suit Storage 2675 | -8/Scraptown | Visited Scrapoid Pod Storage 2690 | -8/Scraptown | Visited LU-1G1's Boring Crew 2702 | -8/Scraptown | Visited Science Guys 2738 | -8/Scraptown | Visited Derelict Rescue Squad 2762 | -8/Scraptown | Visited Analyses Database 2783 | -8/Scraptown | Visited DA-N13 Charitable Foundation 2787 | -8/Scraptown | Found DCF Scrap (29 items) 2830 | -8/Scraptown | Visited Infowarlord's Domain 2847 | -8/Scraptown | Visited Abandonware Association 2858 | -8/Scraptown | Learned abandonware demo "HACKBUD.EXE" 3052 | -8/Scraptown | Delivered Scrap Shield to a Scientist 3309 | -8/Scraptown | Visited Observation Area 3318 | -8/Scraptown | Visited Junk Repository 4135 | -8/Scraptown | Build established: Mutant 4291 | -8/Scraptown | Found Scrapoid Pod 4518 | -8/Scraptown | Discovered new exit (range 13) 5374 | -8/Scraptown | Found Exp. Sensor Array 8438 | -8/Scraptown | Attacked by Scraptown defenders 8450 | -8/Scraptown | Crushed by falling debris 8461 | -8/Scraptown | Destroyed by OV-J40(E) with Overtuned Barrage Gun Last Messages --------------- 06840_ IN-MT5: "Overhelming numbers could provide quite an effective positive reinforcement loop..." 07233_ LOCAL NARROWCAST: Specimen 142. 08433_ Dropped VTOL Module. 08438_ IN-MT5's Safe breached. 08438_ ANNOUNCEMENT: Intruder alert! Defend Scraptown! 08442_ Extracted schematic archive: IN-MT5's Pitchfork "Insurrection". 08442_ Machine disabled. 08448_ Penetrated by Bolt. 08450_ The unstable cave ceiling collapses. 08450_ Crushed by falling debris. 08450_ Shield Generator destroyed. 08450_ System corrupted by crushing effect (+3). 08450_ Mak. Power Source destroyed. 08450_ System corrupted by crushing effect (+3). 08452_ Cesium-ion Thruster ripped off. 08452_ Bolt penetrates Wall. 08456_ Machine disabled. 08459_ A1-XGY(r) follow-up attacks with Ripteeth. 08461_ P0-8FY(b) suffers critical hit (Burn). Map ----- +----------------------------------------------------+ | | | | | | | | | | | | | | | ?????????????????????????????????????????????????? | | ##??????????????????#######??????????????????????? | | ""??????????????????? #??????????????????????? | | "???????????????????< ??####################? | | "#????#######????????c #?#"""""""""#"""""""""#? | | "#???#"""""""#???????# #?#" "#" "#? | | "#???#"" ""#???????# #?#" """ "#? | | "#???#"" ""#???????# #?#" "#" "" "#? | | ""###?#""" ""#???????# #?#" """ "#" " "#? | | #?#"" ""#??????## ###" "#" "#? | | ###""" """######## ##"""""" ""#"" """"""#? | | #? | | #? | | #? | | ###### ########### ##########"" """"#####? | | #????# #?????????## ##????????#" ! "#????? | | #????" "?????##???# #########?#" ""#????? | | #??? " " ???? ??# """"""""#?#" """#????? | | " ""#??" "??### ### @" ""#?#" """#????? | | " "#? " " ?#"" """ bE "#?#"""""""#????? | | " "#?"""" """"?#" """ "r ""#?#########????? | | "###### ######" " """" """#??????????????? | | "#""""" """""#" j ##""";###??????########? | | " ""#" " " "#" "" " ###### ##????## # | | # ###" " " "#" " #""""""x###??# """""" | | # " " "#"""""" #" " = #??# "" "" | | ?####""""" """""####### #" "###??# " " | | ????###### ######?????# #"" " #??# " " | | ########## ############c #""" " #??# " " | | #"" " #??# " " | | #" " #??# "" "" | | ####################### p#" """#??# """""" | | ?????????????????????# cj# #??## # | | #####???????????????### j### ################## # | | """"#???????????????# | | "#???????????????# | | "#?????#######???# | | ! "#?????# ??# | | ! "#?????# ??# | | ! "#?????# ?# #### ############ | | ! "#?????# ?# #? ?????????# | | /! "#?????# # ##" ???????# | | "#?????# # ##"" ?????# | +----------------------------------------------------+ Best States ------------- Heat Dissipation 25 Energy Generation 25 Energy Capacity 565 Matter Stores 300 Matter Capacity 300 Sight Range 21 Terrain Scan Density 10 Armor Coverage 160 Evasion (%) 63 Recoil Reduction 1 Item Schematics ----------------- Huge Storage Unit | -10/Materials | Hacked IN-MT5's Pitchfork "Insurrection" | -8/Scraptown | Archive Robot Schematics ------------------ None Fabricated ------------ Nothing Repaired ---------- Nothing Studied --------- None Alien Tech Used ----------------- None Achievements -------------- None Challenges ------------ None Game ------ Seed OmegaArmorCasing Manual? 0 Play Time 00:45:04 Cumulative 976.1 hours Start 2025.10.22 @ 14:27:20 End 2025.10.23 @ 02:02:18 Sessions 3 Manual Loads 0 Difficulty Rogue Special Mode None Game No. 357 Rogue 352 Adventurer 4 Explorer 1 Win Type - Total 19 Types 13/1/1/1/0/1/0/0/1/1 Lore% 96 Gallery% 92 Achievement% 76 Wizard Run 0 Options --------- Layout 0 ASCII 0 Keyboard 0 Movement Numpad Keybinds 0 Fullscreen 2 Font 18/SmallcapsGlow Map View 76x50 Zoom Use 1% Tactical HUD 1 Map Filters NONE Filters NONE Steam 1 RUN: 5cd62c24-07b2-4d91-9767-71dea8228d80